fUSD/lending_fUSD_20240203
["ID","MTS","AMOUNT","RATE_DAILY","PERIOD"]
[313197690,1706921445893,-156.72680933,0.00022654,2]
[313197691,1706921445902,-156.72680933,0.00022669,2]
[313197692,1706921445911,-156.72680933,0.00022685,2]
[313197693,1706921445920,-289.19871088,0.00022685,3]
[313197694,1706921445930,-425.63480055,0.00022685,2]
[313197695,1706921445939,-694.7685057,0.00022698,3]
[313197696,1706921445947,-333.06992099,0.00022698,2]
[313197697,1706921445957,-6261.70608527,0.00022698,2]
[313197698,1706921445966,-408.18445481,0.00022698,7]
[313197699,1706921445975,-500.0,0.00022698,2]
[313197700,1706921445984,-500.0,0.00022698,2]
[313197701,1706921445993,-500.0,0.00022698,2]
[313197702,1706921446002,-337.91308596,0.00022698,2]
[313197706,1706921462023,3134.76429599,0.00021562,2]
[313197707,1706921468720,1000.0,0.000225,2]
[313197708,1706921486821,554.48,0.00021851,2]
[313197709,1706921503682,880.92406845,0.000225,2]
[313197710,1706921543191,238.58,0.00021854,2]
[313197711,1706921554487,161.0,0.00022014,2]
[313197712,1706921636184,151.11,0.0001988,2]
[313197713,1706921636456,151.11,0.00022144,2]
[313197714,1706921953809,556.41,0.00021752,2]
[313197715,1706921957490,160.31492218,0.00022499,2]
[313197716,1706921976313,198.81,0.00021782,2]
[313197717,1706922057561,151.11,0.00019839,2]
[313197718,1706922057781,151.11,0.00022369,2]
[313197719,1706922063630,205.0,0.0002171,2]
[313197720,1706922079023,6586.27481774,0.000225,2]
[313197721,1706922091183,161.0,0.00021916,2]
[313197722,1706922241896,160.31492218,0.00022498,2]
[313197723,1706922348226,151.0203,0.000225,3]
[313197724,1706922349265,151.0203,0.000225,3]
[313197725,1706922349963,151.0203,0.000225,3]
[313197726,1706922350691,151.0203,0.000225,3]
[313197727,1706922351356,151.0203,0.000225,3]
[313197728,1706922352033,151.0203,0.000225,3]
[313197729,1706922352732,151.0203,0.000225,3]
[313197730,1706922398372,554.87,0.00021804,2]
[313197731,1706922452464,580.92,0.00021954,2]
[313197732,1706922516149,161.0,0.00021926,2]
[313197733,1706922548936,151.11,0.00019862,2]
[313197734,1706922563573,165.67,0.00021794,2]
[313197735,1706922592750,1409.8073,0.000225,2]
[313197741,1706922631732,-525.44699598,0.00022595,2]
[313197744,1706922631742,-4501.54867596,0.00022596,2]
[313197746,1706922631751,-685.5176,0.00022597,2]
[313197748,1706922631760,-923.76589236,0.00022597,2]
[313197752,1706922631892,-323.26186872,0.00022597,2]
[313197753,1706922632009,-22870.73643892,0.00022597,2]
[313197754,1706922632019,-493.29342079,0.00022597,2]
[313197755,1706922632028,-266.47788631,0.00022598,2]
[313197756,1706922632037,-1614.1274,0.00022599,2]
[313197757,1706922632046,-2323.6857,0.00022599,2]
[313197758,1706922632055,-129763.01437675,0.000226,2]
[313197759,1706922632064,-493.29342077,0.0002264,2]
[313197760,1706922632072,-493.29342077,0.00022684,2]
[313197761,1706922632081,-611.33829441,0.00022694,3]
[313197763,1706922632090,-155.0,0.00022695,2]
[313197765,1706922632100,-500.0,0.00022696,2]
[313197766,1706922632108,-500.0,0.00022696,2]
[313197768,1706922632118,-500.0,0.00022696,2]
[313197770,1706922632128,-500.0,0.00022696,2]
[313197772,1706922632136,-500.0,0.00022696,2]
[313197774,1706922632146,-500.0,0.00022696,2]
[313197776,1706922632156,-260.82217878,0.00022696,2]
[313197778,1706922632165,-500.0,0.00022696,2]
[313197780,1706922632175,-500.0,0.00022696,2]
[313197782,1706922632183,-500.0,0.00022696,2]
[313197784,1706922632192,-559.43190716,0.00022696,2]
[313197786,1706922632201,-500.0,0.00022696,2]
[313197787,1706922632210,-500.0,0.00022696,2]
[313197789,1706922632220,-500.0,0.00022696,2]
[313197792,1706922632230,-500.0,0.00022696,2]
[313197794,1706922632241,-493.72681127,0.00022696,2]
[313197795,1706922632250,-526.61809294,0.00022696,2]
[313197797,1706922632259,-500.0,0.00022696,2]
[313197799,1706922632268,-186.8864099,0.00022696,2]
[313197801,1706922632276,-500.0,0.00022696,2]
[313197803,1706922632285,-379.81083255,0.00022696,2]
[313197805,1706922632295,-766.2,0.00022696,2]
[313197808,1706922632304,-619.83830269,0.00022696,2]
[313197809,1706922632313,-499.89071481,0.00022696,2]
[313197811,1706922632323,-500.0,0.00022696,2]
[313197813,1706922632332,-734.94,0.00022696,2]
[313197815,1706922632341,-500.0,0.00022696,2]
[313197817,1706922632350,-500.0,0.00022696,2]
[313197819,1706922632360,-500.0,0.00022696,2]
[313197821,1706922632369,-500.0,0.00022696,2]
[313197823,1706922632378,-500.0,0.00022696,2]
[313197825,1706922632387,-500.0,0.00022696,2]
[313197827,1706922632396,-500.0,0.00022696,2]
[313197829,1706922632406,-500.0,0.00022696,2]
[313197831,1706922632415,-500.0,0.00022696,2]
[313197833,1706922632424,-500.0,0.00022696,2]
[313197835,1706922632433,-500.0,0.00022696,2]
[313197837,1706922632442,-500.0,0.00022696,2]
[313197839,1706922632451,-500.0,0.00022696,2]
[313197840,1706922632460,-646.84,0.00022696,2]
[313197841,1706922632469,-500.0,0.00022696,2]
[313197842,1706922632478,-930.58,0.00022696,2]
[313197843,1706922632487,-500.0,0.00022696,2]
[313197844,1706922632496,-500.0,0.00022696,2]
[313197845,1706922632505,-908.5,0.00022696,2]
[313197846,1706922632514,-217.29522412,0.00022696,2]
[313197847,1706922632523,-578.55,0.00022696,2]
[313197848,1706922632532,-500.0,0.00022696,2]
[313197849,1706922632540,-500.0,0.00022696,2]
[313197850,1706922632549,-500.0,0.00022696,2]
[313197851,1706922632558,-500.0,0.00022696,2]
[313197852,1706922632567,-500.0,0.00022696,2]
[313197853,1706922632577,-500.0,0.00022696,2]
[313197854,1706922632586,-500.0,0.00022696,2]
[313197855,1706922632596,-500.0,0.00022696,2]
[313197856,1706922632605,-573.81305387,0.00022696,2]
[313197857,1706922632614,-500.0,0.00022696,2]
[313197858,1706922632623,-500.0,0.00022696,2]
[313197859,1706922632633,-500.0,0.00022696,2]
[313197860,1706922632642,-499.99,0.00022696,2]
[313197861,1706922632651,-408.5754456,0.00022696,2]
[313197862,1706922632660,-500.0,0.00022696,2]
[313197863,1706922632671,-577.67916427,0.00022696,2]
[313197864,1706922632680,-500.0,0.00022696,2]
[313197865,1706922632689,-500.0,0.00022696,2]
[313197866,1706922632698,-500.0,0.00022696,2]
[313197867,1706922632707,-1114.45,0.00022696,2]
[313197868,1706922632716,-500.0,0.00022696,2]
[313197869,1706922632726,-522.13103085,0.00022696,2]
[313197870,1706922632735,-500.0,0.00022696,2]
[313197871,1706922632744,-300.61153297,0.00022696,2]
[313197872,1706922632754,-500.0,0.00022696,2]
[313197873,1706922632763,-579.72,0.00022696,2]
[313197874,1706922632771,-500.0,0.00022696,2]
[313197875,1706922632781,-500.0,0.00022696,2]
[313197876,1706922632790,-478.99631392,0.00022696,2]
[313197877,1706922632799,-500.0,0.00022696,2]
[313197878,1706922632809,-500.0,0.00022696,2]
[313197879,1706922632820,-463.84304042,0.00022696,2]
[313197880,1706922632830,-500.0,0.00022696,2]
[313197881,1706922632839,-500.0,0.00022696,2]
[313197882,1706922632848,-500.0,0.00022696,2]
[313197883,1706922632858,-500.0,0.00022696,2]
[313197884,1706922632868,-2394.53,0.00022696,2]
[313197885,1706922632877,-500.0,0.00022696,2]
[313197886,1706922632886,-500.0,0.00022696,2]
[313197887,1706922632895,-1316.45,0.00022696,5]
[313197888,1706922632907,-500.0,0.00022696,2]
[313197889,1706922632916,-584.37695067,0.00022696,2]
[313197890,1706922632926,-1029.11,0.00022696,2]
[313197891,1706922632935,-871.2,0.00022696,2]
[313197892,1706922632944,-500.0,0.00022696,2]
[313197893,1706922632953,-500.0,0.00022696,2]
[313197894,1706922632962,-626.11260133,0.00022696,2]
[313197895,1706922632972,-1396.62,0.00022696,5]
[313197896,1706922632981,-500.0,0.00022696,2]
[313197897,1706922632990,-2018.09,0.00022696,2]
[313197898,1706922632999,-526.04086045,0.00022696,2]
[313197899,1706922633009,-500.0,0.00022696,2]
[313197900,1706922633018,-500.0,0.00022696,2]
[313197901,1706922633027,-500.0,0.00022696,2]
[313197902,1706922633036,-1375.07063722,0.00022697,2]
[313197903,1706922633046,-52988.66128836,0.00022697,2]
[313197904,1706922633236,-3622.69292414,0.00022697,2]
[313197905,1706922633256,-280.378098,0.00022697,2]
[313197906,1706922633267,-530.26541467,0.00022697,2]
[313197912,1706922638035,-500.0,0.00022696,2]
[313197913,1706922638045,-15538.03651772,0.00022697,2]
[313197914,1706922638091,-1076.31462604,0.00022697,2]
[313197915,1706922638102,-761.89216963,0.00022697,2]
[313197916,1706922638113,-365.80397817,0.00022697,2]
[313197917,1706922638125,-4224.9,0.00022697,2]
[313197918,1706922638136,-5776.84137706,0.00022697,2]
[313197958,1706922641121,-502.67341232,0.00022696,2]
[313197959,1706922641130,-306.94781989,0.00022697,2]
[313197960,1706922641176,-333.56618725,0.00022697,2]
[313198020,1706922642841,-1764.85377484,0.00022697,2]
[313198024,1706922642949,-4778.66203677,0.00022697,2]
[313198033,1706922645831,-500.0,0.00022696,2]
[313198034,1706922645841,-14048.8755808,0.00022697,2]
[313198035,1706922645852,-1943.66,0.00022697,2]
[313198045,1706922730760,151.0203,0.000225,3]
[313198046,1706922731464,151.0203,0.000225,3]
[313198047,1706922732123,151.0203,0.000225,3]
[313198048,1706922732790,151.0203,0.000225,3]
[313198049,1706922733482,151.0203,0.000225,3]
[313198050,1706922734130,151.0203,0.000225,3]
[313198051,1706922734785,151.0203,0.000225,3]
[313198052,1706922735443,151.0203,0.000225,3]
[313198053,1706922736122,151.0203,0.000225,3]
[313198054,1706922736863,151.0203,0.000225,3]
[313198058,1706922970367,238.43,0.00019958,2]
[313198059,1706922970608,238.43,0.00022222,2]
[313198060,1706922996889,165.67,0.00021845,2]
[313198061,1706923030432,1000.0,0.000225,2]
[313198062,1706923035108,1000.0,0.00021836,2]
[313198063,1706923394390,214.58,0.0001992,2]
[313198064,1706923394755,214.58,0.00022183,2]
[313198065,1706923421842,165.67,0.00021814,2]
[313198066,1706923444466,205.0,0.00022496,2]
[313198067,1706923470461,200.0,0.00021814,2]
[313198068,1706923820682,193.12,0.00019848,2]
[313198069,1706923820871,193.12,0.00022112,2]
[313198103,1706923837996,-163.90303499,0.00022595,2]
[313198104,1706923838007,-703.2893,0.00022595,2]
[313198105,1706923838017,-132.44860859,0.00022596,2]
[313198126,1706923843700,-424.9403,0.00022595,2]
[313198127,1706923843710,-286.63119141,0.00022596,2]
[313198128,1706923843719,-308.30838799,0.00022597,2]
[313198129,1706923843729,-1488.02,0.000226,2]
[313198130,1706923843738,-308.30838798,0.0002264,2]
[313198131,1706923843748,-308.30838798,0.00022684,2]
[313198132,1706923843758,-272.0,0.00022693,2]
[313198133,1706923843768,-2191.31922702,0.00022693,2]
[313198134,1706923843777,-150.1,0.00022694,3]
[313198135,1706923843787,-4790.19982552,0.00022694,2]
[313198145,1706923846390,-580.725,0.00022694,2]
[313198167,1706923848435,-1187.14059828,0.00022694,2]
[313198168,1706923848447,-300.25019249,0.00022694,2]
[313198169,1706923848476,-653.65696065,0.00022694,2]
[313198170,1706923848519,-464.22122074,0.00022694,2]
[313198175,1706923866630,151.1180055,0.00021918,2]
[313198176,1706923868239,155.61,0.00021833,2]
[313198177,1706923896084,168.46,0.00021988,2]
[313198178,1706923901354,278.66,0.00021822,2]
[313198179,1706923902859,840.0,0.00021824,2]
[313198188,1706923922978,151.0203,0.000225,3]
[313198189,1706923929327,3165.41176185,0.00022,7]
[313198191,1706923940520,151.0203,0.000225,3]
[313198192,1706923941186,151.0203,0.000225,3]
[313198193,1706923941893,151.0203,0.000225,3]
[313198194,1706923943711,151.0203,0.000225,3]
[313198195,1706923951335,524.3450886,0.00022,7]
[313198196,1706923958590,208.91613796,0.000225,3]
[313198197,1706923991725,150.0,0.00022222,2]
[313198198,1706924035963,256.3,0.00021766,2]
[313198199,1706924047702,10864.15,0.00021757,2]
[313198200,1706924048940,1000.0,0.000225,2]
[313198201,1706924054319,155.39185009,0.00022,2]
[313198202,1706924056011,368.0,0.00022465,2]
[313198203,1706924060481,3200.29032374,0.00021781,2]
[313198204,1706924108534,497.96,0.00021785,2]
[313198205,1706924150726,182.18,0.00022348,2]
[313198207,1706924266032,199.49,0.00019829,2]
[313198208,1706924266434,199.49,0.00022093,2]
[313198209,1706924290838,171.35,0.00021748,2]
[313198210,1706924295406,177.11,0.00021748,2]
[313198211,1706924320668,168.46,0.00021919,2]
[313198212,1706924324668,200000.0,0.0002216,2]
[313198213,1706924374535,328.0,0.00021764,2]
[313198214,1706924692739,179.54,0.0001983,2]
[313198215,1706924692946,179.54,0.00022094,2]
[313198216,1706924756688,171.35,0.00021749,2]
[313198217,1706924796650,168.46,0.00021912,2]
[313198218,1706924920459,737.6,0.00021743,2]
[313198227,1706925032163,-525.56385465,0.0002259,2]
[313198228,1706925032172,-1707.06588476,0.00022591,2]
[313198229,1706925032183,-679.70803117,0.00022591,2]
[313198230,1706925032194,-1270.173871,0.00022591,2]
[313198231,1706925032219,-4218.50871307,0.00022591,2]
[313198232,1706925032229,-1350.2855,0.00022591,2]
[313198233,1706925032238,-363.87971218,0.00022592,2]
[313198234,1706925032248,-360.34905206,0.00022592,2]
[313198235,1706925032257,-561.57510713,0.00022592,2]
[313198236,1706925032268,-1569.2771,0.00022595,2]
[313198237,1706925032277,-360.34905205,0.0002262,2]
[313198238,1706925032287,-363.87971217,0.00022636,2]
[313198239,1706925032297,-360.34905205,0.00022648,2]
[313198240,1706925032306,-197.91701731,0.00022676,2]
[313198241,1706925032318,-162.43203474,0.00022676,2]
[313198242,1706925032327,-363.87971217,0.0002268,2]
[313198243,1706925032336,-4503.20406399,0.00022681,2]
[313198244,1706925032344,-201.89524695,0.00022689,3]
[313198245,1706925032353,-309.93713122,0.00022689,3]
[313198246,1706925032363,-1000.0,0.00022689,2]
[313198247,1706925032372,-129791.74434938,0.00022689,2]
[313198248,1706925032381,-416.0991707,0.0002269,2]
[313198249,1706925032391,-513.9174492,0.0002269,2]
[313198250,1706925032400,-636.01598326,0.0002269,2]
[313198251,1706925032409,-549.54900715,0.0002269,2]
[313198252,1706925032418,-591.87077668,0.0002269,2]
[313198254,1706925032427,-545.40625255,0.0002269,2]
[313198256,1706925032437,-540.49940181,0.0002269,2]
[313198258,1706925032446,-562.12758942,0.0002269,2]
[313198260,1706925032457,-1596.08,0.0002269,2]
[313198261,1706925032466,-500.0,0.0002269,2]
[313198262,1706925032475,-500.0,0.0002269,2]
[313198263,1706925032485,-500.0,0.0002269,2]
[313198264,1706925032494,-500.0,0.0002269,2]
[313198265,1706925032503,-500.0,0.0002269,2]
[313198266,1706925032513,-699.11,0.0002269,2]
[313198267,1706925032523,-500.0,0.0002269,2]
[313198268,1706925032532,-972.9,0.0002269,2]
[313198269,1706925032542,-500.0,0.0002269,2]
[313198270,1706925032552,-500.0,0.0002269,2]
[313198271,1706925032562,-500.0,0.0002269,2]
[313198272,1706925032576,-165.93796993,0.0002269,2]
[313198273,1706925032586,-500.0,0.0002269,2]
[313198274,1706925032595,-500.0,0.0002269,2]
[313198275,1706925032605,-500.0,0.0002269,2]
[313198276,1706925032616,-500.0,0.0002269,2]
[313198277,1706925032627,-500.0,0.0002269,2]
[313198278,1706925032637,-500.0,0.0002269,2]
[313198279,1706925032646,-500.0,0.0002269,2]
[313198280,1706925032657,-500.0,0.0002269,2]
[313198281,1706925032667,-500.0,0.0002269,2]
[313198282,1706925032677,-500.0,0.0002269,2]
[313198283,1706925032686,-500.0,0.0002269,2]
[313198284,1706925032698,-500.0,0.0002269,2]
[313198285,1706925032707,-500.0,0.0002269,2]
[313198286,1706925032717,-500.0,0.0002269,2]
[313198287,1706925032727,-607.9347302,0.0002269,2]
[313198288,1706925032736,-500.0,0.0002269,2]
[313198289,1706925032745,-500.0,0.0002269,2]
[313198290,1706925032755,-500.0,0.0002269,2]
[313198291,1706925032763,-500.0,0.0002269,2]
[313198292,1706925032772,-500.0,0.0002269,2]
[313198293,1706925032782,-500.0,0.0002269,2]
[313198294,1706925032791,-500.0,0.0002269,2]
[313198295,1706925032800,-500.0,0.0002269,2]
[313198296,1706925032809,-500.0,0.0002269,2]
[313198297,1706925032818,-598.02822718,0.0002269,2]
[313198298,1706925032829,-500.0,0.0002269,2]
[313198299,1706925032839,-500.0,0.0002269,2]
[313198300,1706925032849,-500.0,0.0002269,2]
[313198301,1706925032859,-632.76,0.0002269,2]
[313198302,1706925032868,-157.22277945,0.0002269,2]
[313198303,1706925032878,-500.0,0.0002269,2]
[313198304,1706925032886,-500.0,0.0002269,2]
[313198305,1706925032897,-605.86311995,0.0002269,2]
[313198306,1706925032907,-500.0,0.0002269,2]
[313198307,1706925032916,-603.33433408,0.0002269,2]
[313198308,1706925032925,-500.0,0.0002269,2]
[313198309,1706925032935,-500.0,0.0002269,2]
[313198310,1706925032946,-500.0,0.0002269,2]
[313198311,1706925032956,-500.0,0.0002269,2]
[313198312,1706925032966,-500.0,0.0002269,2]
[313198313,1706925032976,-602.43870339,0.0002269,2]
[313198314,1706925032985,-500.0,0.0002269,2]
[313198315,1706925032995,-500.0,0.0002269,2]
[313198316,1706925033005,-735.01,0.0002269,2]
[313198317,1706925033015,-500.0,0.0002269,2]
[313198318,1706925033023,-500.0,0.0002269,2]
[313198319,1706925033035,-2509.82,0.0002269,2]
[313198320,1706925033047,-369.80959538,0.0002269,5]
[313198321,1706925033056,-500.0,0.0002269,2]
[313198322,1706925033065,-597.09983916,0.0002269,2]
[313198323,1706925033074,-152.83229704,0.0002269,2]
[313198324,1706925033084,-925.52,0.0002269,2]
[313198325,1706925033093,-500.0,0.0002269,2]
[313198326,1706925033104,-500.0,0.0002269,2]
[313198327,1706925033113,-209.86552679,0.0002269,2]
[313198328,1706925033123,-562.71647645,0.0002269,2]
[313198329,1706925033134,-594.49894576,0.0002269,2]
[313198330,1706925033144,-584.82539777,0.0002269,2]
[313198331,1706925033154,-609.70863724,0.0002269,2]
[313198332,1706925033164,-500.0,0.0002269,2]
[313198333,1706925033175,-638.22214809,0.0002269,2]
[313198334,1706925033184,-586.60696933,0.0002269,2]
[313198335,1706925033193,-500.0,0.0002269,2]
[313198336,1706925033203,-153.33830599,0.0002269,2]
[313198337,1706925033213,-621.81048036,0.0002269,2]
[313198338,1706925033223,-213.20606596,0.0002269,2]
[313198339,1706925033231,-609.44495975,0.0002269,2]
[313198340,1706925033239,-325.99177201,0.0002269,2]
[313198341,1706925033249,-251.97255558,0.0002269,2]
[313198342,1706925033258,-500.0,0.0002269,2]
[313198343,1706925033267,-500.0,0.0002269,2]
[313198344,1706925033276,-500.0,0.0002269,2]
[313198345,1706925033286,-500.0,0.0002269,2]
[313198346,1706925033294,-605.46676156,0.0002269,2]
[313198347,1706925033304,-500.0,0.0002269,2]
[313198348,1706925033313,-500.0,0.0002269,2]
[313198349,1706925033322,-989.96,0.0002269,2]
[313198350,1706925033331,-500.0,0.0002269,2]
[313198351,1706925033341,-500.0,0.0002269,2]
[313198352,1706925033350,-599.95273258,0.00022691,2]
[313198353,1706925033359,-349.61,0.00022691,2]
[313198354,1706925033369,-576.39732532,0.00022691,2]
[313198355,1706925033378,-606.36436134,0.00022691,2]
[313198356,1706925033388,-500.0,0.00022691,2]
[313198357,1706925033397,-500.0,0.00022691,2]
[313198358,1706925033407,-160.41049281,0.00022691,2]
[313198359,1706925033418,-500.0,0.00022691,2]
[313198360,1706925033427,-158.25357287,0.00022691,2]
[313198361,1706925033436,-500.0,0.00022691,2]
[313198362,1706925033445,-500.0,0.00022691,2]
[313198363,1706925033455,-500.0,0.00022691,2]
[313198364,1706925033464,-553.39255268,0.00022691,2]
[313198365,1706925033473,-500.0,0.00022691,2]
[313198366,1706925033482,-500.0,0.00022691,2]
[313198367,1706925033491,-500.0,0.00022691,2]
[313198368,1706925033501,-611.02996966,0.00022691,2]
[313198369,1706925033510,-500.0,0.00022691,2]
[313198370,1706925033519,-177.66339812,0.00022691,2]
[313198371,1706925033528,-157.2801772,0.00022691,2]
[313198372,1706925033537,-500.0,0.00022691,2]
[313198373,1706925033546,-500.0,0.00022691,2]
[313198374,1706925033555,-213.50518666,0.00022691,2]
[313198375,1706925033564,-500.0,0.00022691,2]
[313198376,1706925033573,-500.0,0.00022691,2]
[313198377,1706925033586,-500.0,0.00022691,2]
[313198378,1706925033595,-500.0,0.00022691,2]
[313198379,1706925033603,-399.17679273,0.00022691,2]
[313198380,1706925033613,-500.0,0.00022691,2]
[313198381,1706925033622,-500.0,0.00022691,2]
[313198382,1706925033631,-500.0,0.00022691,2]
[313198383,1706925033641,-203.7903913,0.00022691,2]
[313198384,1706925033650,-500.0,0.00022691,2]
[313198385,1706925033661,-500.0,0.00022691,2]
[313198386,1706925033670,-500.0,0.00022691,2]
[313198387,1706925033679,-562.79625305,0.00022691,2]
[313198388,1706925033689,-500.0,0.00022691,2]
[313198389,1706925033698,-500.0,0.00022691,2]
[313198390,1706925033707,-500.0,0.00022691,2]
[313198391,1706925033716,-500.0,0.00022691,2]
[313198392,1706925033725,-500.0,0.00022691,2]
[313198393,1706925033734,-500.0,0.00022691,2]
[313198394,1706925033743,-500.0,0.00022691,2]
[313198395,1706925033752,-500.0,0.00022691,2]
[313198396,1706925033761,-500.0,0.00022691,2]
[313198397,1706925033771,-500.0,0.00022691,2]
[313198398,1706925033780,-205.86302098,0.00022691,2]
[313198399,1706925033899,-500.0,0.00022691,2]
[313198400,1706925033909,-150.0,0.00022691,2]
[313198401,1706925033918,-500.0,0.00022691,2]
[313198402,1706925033927,-500.0,0.00022691,2]
[313198403,1706925033936,-202.87162252,0.00022691,2]
[313198404,1706925033946,-500.0,0.00022691,2]
[313198405,1706925033955,-163.89836628,0.00022691,2]
[313198406,1706925033964,-500.0,0.00022691,2]
[313198407,1706925033974,-500.0,0.00022691,2]
[313198408,1706925033983,-500.0,0.00022691,2]
[313198409,1706925033992,-500.0,0.00022691,2]
[313198410,1706925034002,-564.21224562,0.00022691,2]
[313198411,1706925034011,-500.0,0.00022691,2]
[313198412,1706925034021,-553.03709095,0.00022691,2]
[313198413,1706925034030,-500.0,0.00022691,2]
[313198414,1706925034039,-564.13722435,0.00022691,2]
[313198415,1706925034048,-500.0,0.00022691,2]
[313198416,1706925034059,-500.0,0.00022691,2]
[313198417,1706925034067,-511.76762149,0.00022691,2]
[313198418,1706925034076,-500.0,0.00022691,2]
[313198419,1706925034085,-535.52616916,0.00022691,2]
[313198420,1706925034095,-500.0,0.00022691,2]
[313198421,1706925034104,-300.58633311,0.00022691,2]
[313198422,1706925034113,-209.88151742,0.00022691,2]
[313198423,1706925034122,-554.66719215,0.00022691,2]
[313198424,1706925034131,-500.0,0.00022691,2]
[313198425,1706925034141,-506.71417351,0.00022691,2]
[313198426,1706925034150,-216.82378302,0.00022691,2]
[313198427,1706925034160,-500.0,0.00022691,2]
[313198428,1706925034168,-406.85654752,0.00022691,2]
[313198429,1706925034178,-530.39413072,0.00022691,2]
[313198430,1706925034186,-571.89912371,0.00022691,2]
[313198431,1706925034196,-727.39,0.00022691,2]
[313198432,1706925034205,-500.0,0.00022691,2]
[313198433,1706925034214,-572.83102863,0.00022691,2]
[313198434,1706925034223,-528.21589446,0.00022691,2]
[313198435,1706925034232,-176.00856212,0.00022691,2]
[313198436,1706925034241,-503.55254345,0.00022691,2]
[313198437,1706925034250,-570.8494746,0.00022691,2]
[313198438,1706925034260,-500.0,0.00022691,2]
[313198439,1706925034269,-152.25288081,0.00022691,2]
[313198440,1706925034278,-154.93249361,0.00022691,2]
[313198441,1706925034287,-500.0,0.00022691,2]
[313198442,1706925034297,-501.40001736,0.00022691,2]
[313198443,1706925034307,-175.4851931,0.00022691,2]
[313198444,1706925034316,-152.90792053,0.00022691,2]
[313198445,1706925034326,-559.64478468,0.00022691,2]
[313198446,1706925034336,-579.68995237,0.00022691,2]
[313198447,1706925034346,-566.36729031,0.00022691,2]
[313198448,1706925034357,-569.80848265,0.00022691,2]
[313198449,1706925034366,-500.0,0.00022691,2]
[313198450,1706925034376,-534.43910515,0.00022691,2]
[313198451,1706925034386,-500.0,0.00022691,2]
[313198452,1706925034395,-541.46428514,0.00022691,2]
[313198453,1706925034404,-500.0,0.00022691,2]
[313198454,1706925034415,-190.30464057,0.00022691,2]
[313198455,1706925034423,-500.0,0.00022691,2]
[313198456,1706925034432,-150.73650729,0.00022691,2]
[313198457,1706925034441,-500.0,0.00022691,2]
[313198458,1706925034450,-551.2710617,0.00022691,2]
[313198459,1706925034460,-636.22505348,0.00022691,2]
[313198460,1706925034469,-500.0,0.00022691,2]
[313198461,1706925034478,-500.0,0.00022691,2]
[313198462,1706925034487,-500.0,0.00022691,2]
[313198463,1706925034497,-446.92393163,0.00022691,2]
[313198464,1706925034506,-503.88967355,0.00022691,2]
[313198465,1706925034515,-500.0,0.00022691,2]
[313198466,1706925034524,-574.1496825,0.00022691,2]
[313198467,1706925034533,-548.55192051,0.00022691,2]
[313198468,1706925034542,-201.69675128,0.00022691,2]
[313198469,1706925034551,-291.11871813,0.00022691,2]
[313198470,1706925034560,-500.0,0.00022691,2]
[313198471,1706925034570,-500.0,0.00022691,2]
[313198472,1706925034580,-538.97461515,0.00022691,2]
[313198473,1706925034591,-500.0,0.00022691,2]
[313198474,1706925034600,-500.0,0.00022691,2]
[313198475,1706925034609,-526.52936543,0.00022691,2]
[313198476,1706925034618,-500.0,0.00022691,2]
[313198477,1706925034627,-340.99799296,0.00022691,2]